bitfinex-derivatives/quotes_SOLF0:USTF0_20251208
["timestamp","ask_amount","ask_price","bid_price","bid_amount"]
[1765187052428,0.04889571,138.01,137.97,13.19436415]
[1765187052720,6.56959571,138.01,137.97,16.51436415]
[1765187052914,6.56959571,138.01,137.97,13.19436415]
[1765187055520,6.56959571,138.01,137.97,6.67186415]
[1765187059030,6.5212,138.0,137.97,6.67186415]
[1765187060022,6.5212,138.0,137.97,9.79186415]
[1765187060225,6.5217,137.99,137.97,6.67186415]
[1765187062525,6.5217,137.99,137.97,9.79186415]
[1765187065829,6.5212,138.0,137.98,3.12]
[1765187066028,6.5212,138.0,137.98,9.7436089]
[1765187066524,6.5212,138.0,137.98,3.12]
[1765187066827,6.5212,138.0,137.97,9.79186415]
[1765187067331,0.04889571,138.01,137.98,3.12]
[1765187067528,0.04889571,138.01,137.98,9.7436089]
[1765187067722,0.04889571,138.01,137.99,3.12]
[1765187069426,6.56959571,138.01,137.98,9.7436089]
[1765187076538,6.56959571,138.01,137.99,3.12]
[1765187077838,0.04889571,138.01,137.98,6.6236089]
[1765187078038,0.04889571,138.01,137.98,9.7436089]
[1765187079441,6.5211,138.0,137.98,9.7436089]
[1765187080244,6.5211,138.0,137.99,3.12]
[1765187081347,6.5211,138.0,137.99,9.7436089]
[1765187082549,6.5211,138.0,137.99,6.6236089]
[1765187082744,6.5216,137.99,137.98,6.6236089]
[1765187082945,6.5216,137.99,137.97,6.67186415]
[1765187083249,61.96,137.98,137.97,0.04825525]
[1765187084546,68.4821,137.98,137.97,0.04825525]
[1765187087654,68.4821,137.98,137.97,6.70457403]
[1765187088756,6.523,137.96,137.95,8.84251252]
[1765187089550,6.523,137.96,137.94,12.20724313]
[1765187089748,6.523,137.96,137.94,3.36473061]
[1765187089948,0.04831383,137.97,137.94,3.36473061]
[1765187090252,0.04831383,137.97,137.96,3.31]
[1765187094658,0.04831383,137.97,137.96,12.15251252]
[1765187098359,0.04831383,137.97,137.96,3.31]
[1765187100374,6.57101383,137.97,137.95,11.99251252]
[1765187100964,101.4733,137.96,137.9,3.15]
[1765187101162,103.20593653,137.95,137.9,3.15]
[1765187101361,163.4487,137.94,137.9,3.15]
[1765187101663,6.525,137.92,137.9,3.15]
[1765187102067,6.57423275,137.92,137.9,3.20321351]
[1765187104274,6.57423275,137.92,137.9,0.05321351]
[1765187105068,6.57423275,137.92,137.9,3.20321351]
[1765187105269,61.96,137.91,137.9,3.20321351]
[1765187105578,61.96,137.91,137.9,4.92805004]
[1765187106378,61.96,137.91,137.9,3.20321351]
[1765187108275,61.96,137.91,137.9,0.05321351]
[1765187110572,61.96,137.91,137.9,4.92805004]
[1765187110773,6.5244,137.94,137.91,3.15]
[1765187110969,61.98,137.95,137.93,4.87483653]
[1765187111278,68.5036,137.95,137.93,4.87483653]
[1765187111979,68.5036,137.95,137.93,4.93012915]
[1765187111980,68.55579309,137.95,137.93,4.93012915]
[1765187112280,62.03219309,137.95,137.93,4.93012915]
[1765187114973,62.03219309,137.95,137.94,3.15]
[1765187117783,62.03219309,137.95,137.93,1.78012915]
[1765187118181,62.03219309,137.95,137.93,4.97012915]
[1765187119585,68.55579309,137.95,137.93,0.05529262]
[1765187123089,62.03219309,137.95,137.93,0.05529262]
[1765187124889,63.75702962,137.95,137.87,62.0]
[1765187125097,1.72483653,137.9,137.86,3.19]
[1765187125491,33.28,137.91,137.86,3.19]
[1765187125692,6.5243,137.94,137.88,3.19]
[1765187125997,0.04620327,137.92,137.9,0.04968079]
[1765187126889,1.72483653,137.91,137.9,0.04968079]
[1765187127195,0.04620327,137.92,137.9,0.04968079]
[1765187127398,1.72483653,137.91,137.9,0.04968079]
[1765187130591,0.04620327,137.92,137.9,3.23968079]
[1765187136201,0.04620327,137.92,137.9,0.04968079]
[1765187136396,1.72483653,137.91,137.9,0.04968079]
[1765187138711,6.57120327,137.92,137.9,0.04968079]
[1765187142605,6.57120327,137.92,137.9,3.23968079]
[1765187142809,6.57120327,137.92,137.9,0.04968079]
[1765187148907,6.5275,137.87,137.84,12.07927507]
[1765187149202,61.98,137.86,137.84,3.22]
[1765187150006,62.02699735,137.86,137.84,3.26811204]
[1765187150204,68.55489735,137.86,137.84,0.04811204]
[1765187152609,6.5299,137.82,137.79,3.22]
[1765187152907,61.98,137.81,137.79,3.22]
[1765187153720,62.02764204,137.81,137.79,3.26830915]
[1765187153922,0.04764204,137.81,137.79,3.26830915]
[1765187154115,101.5103,137.91,137.81,3.22]
[1765187154420,101.5222,137.89,137.82,3.22]
[1765187155018,0.0528998,137.87,137.84,0.0536287]
[1765187155219,62.0,137.86,137.84,0.0536287]
[1765187155616,68.5279,137.86,137.84,0.0536287]
[1765187160833,62.0,137.86,137.84,3.3436287]
[1765187161530,0.0528998,137.87,137.84,3.3436287]
[1765187161828,62.0,137.9,137.85,3.29]
[1765187162821,0.0537303,137.89,137.87,3.29]
[1765187163027,0.0537303,137.89,137.87,3.33630252]
[1765187164540,0.0537303,137.89,137.87,9.86340252]
[1765187164838,0.0537303,137.89,137.88,3.29]
[1765187170740,59.53400602,137.9,137.89,3.29]
[1765187172739,0.05405247,137.91,137.9,9.8159]
[1765187173136,65.14,137.96,137.91,3.29]
[1765187173641,65.14,137.96,137.92,6.5248]
[1765187173848,3.12,137.95,137.92,9.8148]
[1765187174146,3.16674081,137.95,137.92,9.86473968]
[1765187174445,3.16674081,137.95,137.92,0.04993968]
[1765187175239,3.12,137.94,137.92,0.04993968]
[1765187176541,9.6441,137.94,137.92,0.04993968]
[1765187176748,3.12,137.93,137.88,6.64886251]
[1765187177047,3.12,137.93,137.87,9.93886251]
[1765187177935,3.17402588,137.91,137.89,0.05155619]
[1765187178139,3.17255815,137.91,137.89,0.05155619]
[1765187182343,9.69805815,137.91,137.89,0.05155619]
[1765187182545,3.24,137.9,137.89,0.05155619]
[1765187192355,9.7659,137.9,137.89,0.05155619]
[1765187192740,0.05255815,137.91,137.89,3.14155619]
[1765187192943,0.05255815,137.91,137.9,9.73886251]
[1765187193344,0.05255815,137.91,137.9,16.26476251]
[1765187193549,0.05255815,137.91,137.9,3.09]
[1765187193746,0.05255815,137.91,137.89,9.7904187]
[1765187194055,0.05255815,137.91,137.89,3.14155619]
[1765187194450,0.05255815,137.91,137.89,9.66785619]
[1765187195955,0.05255815,137.91,137.9,3.09]
[1765187196748,0.05255815,137.91,137.9,9.73886251]
[1765187197154,0.05255815,137.91,137.9,4.55]
[1765187197356,3.24,137.96,137.92,3.09]
[1765187198056,3.24,137.96,137.93,6.5244]
[1765187198253,3.288147,137.96,137.93,9.66105984]
[1765187200161,3.288147,137.96,137.94,3.09]
[1765187200358,0.048147,137.96,137.95,3.09]
[1765187206560,0.048147,137.96,137.95,9.74722025]
[1765187208464,0.048147,137.96,137.95,3.09]
[1765187208961,3.368147,137.96,137.94,13.18112025]
[1765187209764,3.368147,137.96,137.93,9.89388009]
[1765187210461,3.368147,137.96,137.93,16.41828009]
[1765187210655,3.368147,137.96,137.93,0.04665984]
[1765187210962,3.32,137.93,137.89,6.65722025]
[1765187211259,3.32,137.91,137.88,6.65722025]
[1765187211663,3.32,137.91,137.87,16.37442025]
[1765187211969,3.37012036,137.9,137.88,0.04697829]
[1765187213167,3.37012036,137.9,137.88,6.57367829]
[1765187213366,3.37012036,137.9,137.88,13.23089854]
[1765187214462,3.37012036,137.9,137.88,6.57367829]
[1765187215162,3.37012036,137.9,137.88,0.04697829]
[1765187217966,5.09598776,137.9,137.88,0.04697829]
[1765187218365,3.37012036,137.9,137.88,0.04697829]
[1765187218571,0.05012036,137.9,137.88,3.18697829]
[1765187220277,3.11012036,137.9,137.88,3.18697829]
[1765187220474,3.11012036,137.9,137.88,0.04697829]
[1765187220974,3.06,137.89,137.88,0.04697829]
[1765187223577,3.06,137.88,137.85,6.65722025]
[1765187223776,3.06,137.87,137.85,6.65722025]
[1765187224280,3.06,137.87,137.84,9.79722025]
[1765187224486,3.10800944,137.87,137.84,9.84426485]
[1765187224875,0.04800944,137.87,137.85,3.14]
[1765187225781,0.04800944,137.87,137.85,9.668]
[1765187226083,0.04800944,137.87,137.86,3.14]
[1765187226876,0.04800944,137.87,137.85,6.65722025]
[1765187227479,0.04800944,137.87,137.85,9.79722025]
[1765187227681,0.04800944,137.87,137.85,3.14]
[1765187231586,3.10800944,137.87,137.84,9.84426485]
[1765187231788,3.10800944,137.87,137.84,3.1870446]
[1765187231993,3.10800944,137.87,137.84,0.0470446]
[1765187232686,3.06,137.86,137.84,0.0470446]
[1765187233288,3.06,137.85,137.84,0.0470446]
[1765187245188,9.5882,137.85,137.84,0.0470446]
[1765187245395,3.17,137.84,137.8,9.6702]
[1765187245695,65.17,137.83,137.8,9.6702]
[1765187246282,65.22510287,137.83,137.8,9.71626854]
[1765187247196,0.05510287,137.83,137.82,3.3]
[1765187247798,71.7172,137.88,137.85,3.3]
[1765187248091,3.17,137.87,137.84,3.3]
[1765187248298,71.7172,137.88,137.84,3.3]
[1765187248502,3.17,137.88,137.85,3.3]
[1765187248685,65.19,137.88,137.85,3.3]
[1765187248889,65.24081978,137.88,137.85,3.34975986]
[1765187249100,3.17,137.87,137.85,3.34975986]
[1765187249289,62.07081978,137.88,137.85,3.34975986]
[1765187249491,62.07081978,137.88,137.86,3.3]
[1765187251190,65.24081978,137.88,137.86,3.3]
[1765187251392,62.07081978,137.88,137.86,3.3]
[1765187254500,62.07081978,137.88,137.86,9.95722025]
[1765187255101,65.24081978,137.88,137.86,3.3]
[1765187255299,65.24081978,137.88,137.86,9.95722025]
[1765187255492,62.07081978,137.88,137.86,9.95722025]
[1765187257504,65.24081978,137.88,137.86,9.95722025]
[1765187258206,65.24081978,137.88,137.87,6.65722025]
[1765187259301,62.07081978,137.88,137.87,6.65722025]
[1765187260501,65.24081978,137.88,137.87,6.65722025]
[1765187261105,62.07081978,137.88,137.87,6.65722025]
[1765187262801,3.17,137.93,137.88,3.3]
[1765187263108,3.17,137.93,137.9,10.00023435]
[1765187263304,3.17,137.92,137.89,6.70023435]
[1765187263608,3.17,137.92,137.88,6.70023435]
[1765187263809,3.17,137.9,137.89,0.05125694]
[1765187267308,65.17,137.9,137.89,0.05125694]
[1765187269814,3.06,137.88,137.86,6.70023435]
[1765187270113,3.06,137.88,137.82,16.29556796]
[1765187270114,3.06,137.88,137.85,6.70023435]
[1765187270706,3.11155706,137.88,137.85,6.74919675]
[1765187271411,3.06,137.87,137.85,6.74919675]
[1765187275814,3.06,137.87,137.85,16.28739675]
[1765187276011,65.11155706,137.88,137.85,16.28739675]
[1765187276212,0.05155706,137.88,137.87,9.71023435]
[1765187276416,0.05155706,137.88,137.87,3.01]
[1765187279619,0.05155706,137.88,137.87,11.86927507]
[1765187281324,0.05155706,137.88,137.87,9.5373]
[1765187285028,3.26155706,137.88,137.86,15.38697507]
[1765187285222,3.26155706,137.88,137.87,6.68810079]
[1765187285729,0.05155706,137.88,137.87,6.68810079]
[1765187285928,0.05155706,137.88,137.87,16.44540079]
[1765187286526,0.05155706,137.88,137.87,9.7573]
[1765187286928,3.21,137.93,137.91,3.23]
[1765187287230,3.21,137.94,137.91,3.23]
[1765187287433,3.21,137.94,137.91,6.68853901]
[1765187287620,3.21,137.94,137.91,9.91853901]
[1765187288135,3.25717836,137.94,137.91,9.96682094]
[1765187290129,3.25717836,137.94,137.91,6.73682094]
[1765187290326,3.21,137.93,137.91,6.73682094]
[1765187291936,3.21,137.93,137.91,9.96682094]
[1765187292129,3.21,137.93,137.91,6.73682094]
[1765187292535,3.21,137.92,137.91,6.73682094]
[1765187292736,3.21,137.92,137.91,0.04828193]
[1765187297042,3.21,137.93,137.91,3.27828193]
[1765187297543,3.21,137.93,137.91,0.04828193]
[1765187304649,9.7345,137.93,137.91,0.04828193]
[1765187305049,3.21,137.93,137.91,0.04828193]
[1765187305248,3.29,137.92,137.91,0.04828193]
[1765187306849,3.29,137.93,137.91,9.93970605]
[1765187307848,6.57117836,137.94,137.92,3.19]
[1765187308042,6.57117836,137.94,137.93,3.19]
[1765187308043,0.04717836,137.94,137.93,3.19]
[1765187308245,0.04717836,137.94,137.93,9.89453613]
[1765187308439,0.04717836,137.94,137.93,3.19]
[1765187308747,0.04717836,137.94,137.93,13.56523216]
[1765187308946,0.04717836,137.94,137.93,4.63]
[1765187309250,0.04717836,137.94,137.93,3.19]
[1765187310053,3.33717836,137.94,137.93,6.69917431]
[1765187310251,3.33717836,137.94,137.92,6.69917431]
[1765187313253,0.04717836,137.94,137.93,3.19]
[1765187313451,3.29,137.99,137.94,3.19]
[1765187313754,3.29,137.99,137.96,3.19]
[1765187313958,3.29,137.99,137.96,9.88166502]
[1765187314252,3.29,137.99,137.96,3.19]
[1765187314454,3.33591404,137.99,137.96,9.76584384]
[1765187315354,3.33591404,137.99,137.97,3.19]
[1765187319456,3.33591404,137.99,137.96,0.05294384]
[1765187320161,3.29,137.97,137.96,0.05294384]
[1765187322260,0.04591404,137.99,137.96,3.24294384]
[1765187322261,3.33591404,137.99,137.96,3.24294384]
[1765187322461,65.33591404,137.99,137.96,3.24294384]
[1765187325255,62.04591404,137.99,137.96,4.96827388]
[1765187325457,65.33591404,137.99,137.96,1.77827388]
[1765187325757,65.33591404,137.99,137.96,4.96827388]
[1765187326263,65.33591404,137.99,137.96,3.24294384]
[1765187326459,3.29,137.98,137.96,3.24294384]
[1765187326655,3.29,137.98,137.96,0.05294384]
[1765187330967,9.8122,137.98,137.96,0.05294384]
[1765187331661,3.02,137.97,137.96,0.05294384]
[1765187337068,3.02,137.96,137.94,6.69166502]
[1765187337271,3.02,137.95,137.92,6.69166502]
[1765187337468,3.02,137.93,137.91,6.69166502]
[1765187338066,3.07424312,137.93,137.91,6.74159777]
[1765187342869,0.05424312,137.93,137.92,9.89166502]
[1765187347875,0.05424312,137.93,137.92,3.2]
[1765187351275,0.05424312,137.93,137.92,12.12745523]
[1765187352074,3.11424312,137.93,137.92,8.92745523]
[1765187352275,3.11424312,137.93,137.91,18.70248798]
[1765187353165,3.11424312,137.93,137.91,8.97738798]
[1765187353365,3.11424312,137.93,137.92,6.72645614]
[1765187356475,3.06,137.92,137.91,6.77638889]
[1765187357373,3.06,137.92,137.91,0.04993275]
[1765187358281,9.5849,137.92,137.91,0.04993275]
[1765187358880,11.31023004,137.92,137.91,0.04993275]
[1765187363286,9.8059,137.9,137.89,6.72645614]
[1765187363479,71.7859,137.9,137.89,6.72645614]
[1765187365387,65.26,137.9,137.89,6.72645614]
[1765187369988,71.7859,137.9,137.89,6.72645614]
[1765187370188,71.7859,137.9,137.88,6.78038381]
[1765187373789,3.28,137.89,137.88,6.78038381]
[1765187374490,9.8063,137.89,137.88,6.78038381]
[1765187374693,9.8063,137.89,137.88,0.05392767]
[1765187374993,3.28,137.88,137.86,6.72645614]
[1765187375388,3.28,137.87,137.86,6.72645614]
[1765187376394,3.28,137.87,137.85,6.78123158]
[1765187377297,3.28,137.87,137.85,10.03123158]
[1765187379199,9.8064,137.89,137.86,3.25]
[1765187379898,3.28,137.88,137.86,3.25]
[1765187380394,3.28,137.88,137.86,9.97645614]
[1765187382597,3.28,137.88,137.86,3.25]
[1765187383701,0.05535806,137.9,137.86,3.25]
[1765187383897,62.0,137.89,137.88,3.25]
[1765187388198,65.17,137.89,137.87,10.0076168]
[1765187388596,3.17,137.88,137.86,6.7176168]
[1765187388799,3.17,137.88,137.85,10.06239224]
[1765187389000,3.17,137.88,137.85,6.77239224]
[1765187389501,3.17,137.86,137.85,6.77239224]
[1765187389701,9.74828636,137.87,137.85,6.77239224]
[1765187391002,3.17,137.86,137.85,6.77239224]
[1765187391204,3.17,137.86,137.85,0.05477544]
[1765187400705,0.05098636,137.87,137.85,3.30477544]
[1765187400906,0.05098636,137.87,137.86,3.25]
[1765187401408,0.05098636,137.87,137.86,12.17745523]
[1765187403607,0.05098636,137.87,137.86,13.63745523]
[1765187404811,0.05098636,137.87,137.86,12.17745523]
[1765187406315,62.0,137.89,137.87,3.25]
[1765187406508,62.0,137.89,137.88,9.98023491]
[1765187409519,62.0,137.89,137.88,3.25]
[1765187412017,3.11,137.94,137.88,3.25]
[1765187412018,3.11,137.94,137.9,3.08]
[1765187412218,3.11,137.94,137.91,3.08]
[1765187413010,6.5747237,137.94,137.91,3.13502652]
[1765187413215,3.11,137.93,137.91,9.87924255]
[1765187413424,3.1607237,137.94,137.91,9.87924255]
[1765187413626,3.1607237,137.94,137.92,6.74421603]
[1765187414224,0.0507237,137.94,137.92,9.82421603]
[1765187414932,0.0507237,137.94,137.93,3.08]
[1765187415428,0.0507237,137.94,137.93,9.82421603]
[1765187415622,0.0507237,137.94,137.93,3.08]
[1765187416929,3.1607237,137.94,137.93,6.7322542]
[1765187417131,0.0507237,137.94,137.93,6.7322542]
[1765187417522,0.0507237,137.94,137.93,9.8122542]
[1765187419136,0.0507237,137.94,137.93,3.08]
[1765187423844,101.4349,138.01,137.94,3.08]
[1765187423845,3.26,138.01,137.94,3.08]
[1765187424045,3.26,138.01,137.95,6.73082514]
[1765187424255,3.26,137.99,137.95,9.81082514]
[1765187424448,3.26,137.99,137.96,3.08]
[1765187424751,3.31308871,137.99,137.96,3.1282892]
[1765187425448,9.83478871,137.99,137.96,3.1282892]
[1765187425844,3.31308871,137.99,137.96,3.1282892]
[1765187427453,3.31308871,137.99,137.96,9.6512892]
[1765187427751,3.31308871,137.99,137.96,0.0482892]
[1765187427936,3.31308871,137.99,137.96,3.1282892]
[1765187431456,3.31308871,137.99,137.97,3.08]
[1765187431753,0.05308871,137.99,137.97,3.08]
[1765187431950,3.31308871,137.99,137.97,3.08]
[1765187433451,9.83488871,137.99,137.96,0.0482892]
[1765187433656,3.26,137.98,137.96,0.0482892]
[1765187434256,3.26,137.98,137.96,3.1282892]
[1765187435251,0.05308871,137.99,137.96,3.1282892]
[1765187435447,0.05308871,137.99,137.98,3.08]
[1765187437252,0.05308871,137.99,137.97,9.6025]
[1765187437457,0.05308871,137.99,137.98,3.08]
[1765187437659,3.31308871,137.99,137.96,0.0482892]
[1765187438459,3.31308871,137.99,137.96,3.1282892]
[1765187438757,0.05308871,137.99,137.96,9.6511892]
[1765187439253,0.05308871,137.99,137.97,3.08]
[1765187440555,0.05308871,137.99,137.97,9.6025]
[1765187441061,3.31308871,137.99,137.97,3.08]
[1765187442051,0.05308871,137.99,137.97,3.08]
[1765187443457,0.05308871,137.99,137.98,3.08]
[1765187443857,3.31308871,137.99,137.97,9.6024]
[1765187445559,0.05308871,137.99,137.97,9.6024]
[1765187447563,3.31308871,137.99,137.97,9.6024]
[1765187448059,3.31308871,137.99,137.96,0.0482892]
[1765187448965,3.31308871,137.99,137.96,3.0782892]
[1765187449466,3.31308871,137.99,137.97,3.03]
[1765187453669,3.31308871,137.99,137.96,16.33211434]
[1765187455264,3.31308871,137.99,137.97,6.73082514]
[1765187455969,3.31308871,137.99,137.97,9.76082514]
[1765187456559,3.31308871,137.99,137.98,3.03]
[1765187456560,0.05308871,137.99,137.98,3.03]
[1765187456771,0.05308871,137.99,137.98,9.76082514]
[1765187457271,0.05308871,137.99,137.98,3.03]
[1765187457469,0.05308871,137.99,137.98,9.5521]
[1765187459271,0.05308871,137.99,137.98,18.52653352]
[1765187459973,0.05308871,137.99,137.98,9.5521]
[1765187460873,0.05308871,137.99,137.98,18.52653352]
[1765187465078,0.05308871,137.99,137.98,9.5521]
[1765187468787,0.05308871,137.99,137.98,22.95494825]
[1765187468992,0.05308871,137.99,137.98,9.5521]
[1765187469290,0.05308871,137.99,137.98,23.11334048]
[1765187472296,0.05308871,137.99,137.98,16.59124048]
[1765187472489,0.05308871,137.99,137.98,9.0416524]
[1765187472490,3.13308871,137.99,137.98,9.0416524]
[1765187472690,4.85824452,137.99,137.97,9.0416524]
[1765187472894,3.08,137.98,137.97,9.0416524]
[1765187473796,4.85824452,137.99,137.97,9.0416524]
[1765187474597,11.37994452,137.99,137.97,9.0416524]
[1765187476202,3.08,137.98,137.97,9.0416524]
[1765187476500,3.08,137.97,137.96,9.0899416]
[1765187477300,9.6022,137.98,137.96,9.0899416]
[1765187478099,9.6022,137.98,137.96,12.1799416]
[1765187478498,9.6022,137.98,137.96,3.1382892]
[1765187478801,9.6022,137.98,137.96,12.17918844]
[1765187479598,9.6022,137.98,137.96,9.08918844]
[1765187480701,9.6022,137.98,137.96,3.1382892]
[1765187481299,3.03,137.97,137.96,9.08947369]
[1765187482302,3.03,137.97,137.96,0.0482892]
[1765187485104,0.05308871,137.99,137.96,12.17947369]
[1765187485303,0.05308871,137.99,137.98,9.86741999]
[1765187485505,0.05308871,137.99,137.98,3.09]
[1765187485702,0.05308871,137.99,137.98,4.81515581]
[1765187485908,0.05308871,137.99,137.98,18.37693254]
[1765187491407,0.05308871,137.99,137.98,4.81515581]
[1765187496208,61.94,138.04,137.99,3.09]
[1765187496410,101.3853,138.08,137.99,3.09]
[1765187496411,3.03,138.06,138.03,3.09]
[1765187496910,3.03,138.05,138.03,3.09]
[1765187497413,3.07801979,138.05,138.03,3.13731284]
[1765187497898,3.07801979,138.05,138.03,9.90191941]
[1765187498313,3.07801979,138.05,138.03,3.13731284]
[1765187498905,3.07801979,138.05,138.03,9.90191941]
[1765187507506,0.04801979,138.05,138.04,3.09]
[1765187507712,3.07801979,138.05,138.04,3.09]
[1765187509110,3.07801979,138.05,138.03,9.87939023]
[1765187511317,3.07801979,138.05,138.03,3.12731284]
[1765187513410,3.07801979,138.05,138.03,9.87939023]
[1765187513917,3.31,138.04,138.03,9.87939023]
[1765187514119,6.56691979,138.05,138.03,9.87939023]
[1765187514120,0.04801979,138.05,138.03,9.87939023]
[1765187514312,0.04801979,138.05,138.04,9.83207739]
[1765187515214,3.35801979,138.05,138.03,0.04731284]
[1765187515419,61.92,138.04,138.03,4.16913249]
[1765187515619,3.31,138.03,137.97,15.54177543]
[1765187515820,3.31,138.03,137.97,18.62177543]
[1765187516321,3.31,138.03,137.98,3.08]
[1765187516516,3.31,138.01,137.99,3.13091185]
[1765187517726,0.05352278,138.02,137.99,3.13091185]
[1765187517922,0.05352278,138.02,137.99,12.15038728]
[1765187518224,0.05352278,138.02,138.0,3.08]
[1765187518622,3.14352278,138.02,137.99,3.08091185]
[1765187519125,0.05352278,138.02,137.99,3.08091185]
[1765187520524,3.14352278,138.02,137.99,3.08091185]
[1765187520822,0.05352278,138.02,137.99,3.08091185]
[1765187521721,0.05352278,138.02,137.99,12.10038728]
[1765187521922,0.05352278,138.02,138.0,3.03]
[1765187522517,0.05352278,138.02,138.0,12.04947543]
[1765187522721,0.05352278,138.02,138.01,3.03]
[1765187522915,6.5188,138.06,138.02,3.03]
[1765187523215,6.5188,138.06,138.03,3.03]
[1765187523216,9.6088,138.06,138.03,3.03]
[1765187524017,9.65621935,138.06,138.03,3.08569413]
[1765187524722,6.56621935,138.06,138.03,3.08569413]
[1765187524924,9.65621935,138.06,138.03,3.08569413]
[1765187525126,3.09,138.04,138.03,0.05569413]
[1765187525526,6.5189,138.05,138.03,3.08569413]
[1765187525727,9.6089,138.05,138.03,3.08569413]
[1765187530028,3.09,138.05,138.03,3.08569413]
[1765187531522,3.13741935,138.06,138.03,3.08569413]
[1765187531718,3.13741935,138.06,138.03,0.05569413]
[1765187532332,3.09,138.04,138.03,0.05569413]
[1765187535535,64.99,138.04,138.03,0.05569413]
[1765187538936,3.09,138.04,138.03,0.05569413]
[1765187540038,65.05,138.05,138.03,3.13569413]
[1765187542141,3.15,138.04,138.03,0.05569413]
[1765187542737,0.04741935,138.06,138.03,0.05569413]
[1765187542738,0.04741935,138.06,138.03,3.13569413]
[1765187543243,0.04741935,138.06,138.05,12.11084934]
[1765187544544,0.04741935,138.06,138.05,18.62964934]
[1765187544737,0.04741935,138.06,138.05,12.11084934]
[1765187545541,0.04741935,138.06,138.05,9.03084934]
[1765187545542,3.19741935,138.06,138.05,9.03084934]
[1765187547340,0.04741935,138.06,138.05,12.11084934]
[1765187548242,68.4169,138.1,138.05,12.11084934]
[1765187548448,3.15,138.09,138.06,3.08]
[1765187549149,3.15,138.09,138.07,3.08]
[1765187549340,3.20359475,138.09,138.07,3.1350566]
[1765187551039,0.05359475,138.09,138.08,9.5974]
[1765187551240,0.05359475,138.09,138.08,3.08]
[1765187552454,3.20359475,138.09,138.07,0.0550566]
[1765187552747,3.20359475,138.09,138.07,13.60133062]
[1765187552944,3.20359475,138.09,138.08,9.01156088]
[1765187553144,0.05359475,138.09,138.08,12.09156088]
[1765187553852,3.20359475,138.09,138.07,9.06661748]
[1765187554244,65.05,138.08,138.07,0.0550566]
[1765187556952,3.15,138.06,138.02,9.01156088]
[1765187557260,3.15,138.06,138.02,12.09156088]
[1765187557847,0.04788678,138.05,138.03,3.13541065]
[1765187558052,0.04788678,138.05,138.03,12.14697153]
[1765187558253,0.04788678,138.05,138.04,3.08]
[1765187558452,3.15,138.1,138.04,3.08]
[1765187558657,3.15,138.12,138.07,3.08]
[1765187558863,65.05,138.11,138.08,3.08]
[1765187559564,65.10076099,138.11,138.08,3.12926939]
[1765187561056,3.15,138.1,138.08,3.12926939]
[1765187561257,3.15,138.1,138.08,0.04926939]
[1765187561759,9.6665,138.1,138.08,0.04926939]
[1765187563666,3.15,138.09,138.08,0.04926939]
[1765187566971,3.15,138.1,138.08,0.04926939]
[1765187569262,3.15,138.1,138.08,3.09926939]
[1765187569469,3.15,138.1,138.08,9.61666939]
[1765187571662,0.05076099,138.11,138.1,3.05]
[1765187572170,9.66676099,138.11,138.08,0.04926939]
[1765187572469,3.1,138.1,138.08,0.04926939]
[1765187575969,3.1,138.1,138.08,3.09926939]
[1765187576971,3.1,138.1,138.08,9.61656939]
[1765187577572,0.05076099,138.11,138.09,3.05]
[1765187577870,3.15076099,138.11,138.09,3.05]
[1765187579276,3.15076099,138.11,138.08,9.64656939]
[1765187579771,3.15076099,138.11,138.09,3.08]
[1765187580576,0.05076099,138.11,138.1,3.08]
[1765187580970,61.88,138.13,138.1,3.08]
[1765187581174,3.02,138.12,138.08,9.88102438]
[1765187581366,3.02,138.12,138.09,3.08]
[1765187581972,3.06862468,138.12,138.09,3.08]
[1765187582169,3.06862468,138.12,138.08,6.80102438]
[1765187582372,3.06862468,138.12,138.08,0.04926939]
[1765187583472,9.58432468,138.12,138.08,6.80102438]
[1765187583676,3.02,138.11,138.08,6.80102438]
[1765187587084,3.02,138.11,138.08,9.88102438]
[1765187593299,3.02,138.11,138.09,6.75175499]
[1765187594194,3.02,138.1,138.09,6.75175499]
[1765187594394,3.02,138.1,138.08,6.80102438]
[1765187595002,3.02,138.1,138.08,0.04926939]